bitfinex-derivatives/quotes_SOLF0:USTF0_20250522
["timestamp","ask_amount","ask_price","bid_price","bid_amount"]
[1747908114927,5.5678,179.57,179.56,0.0381693]
[1747908115127,125.12,179.59,179.56,0.0381693]
[1747908115428,5.5677,179.58,179.56,0.0381693]
[1747908115628,125.12,179.59,179.56,0.0381693]
[1747908116026,5.5678,179.57,179.56,0.0381693]
[1747908118433,5.5676,179.58,179.56,0.0381693]
[1747908118627,125.12,179.59,179.56,0.0381693]
[1747908119133,0.03655721,179.6,179.59,5.5672]
[1747908119526,125.16,179.67,179.56,0.0381693]
[1747908119726,125.16,179.67,179.55,125.16]
[1747908120131,5.5653,179.66,179.55,125.16]
[1747908120332,5.5653,179.66,179.63,5.5659]
[1747908120630,0.03870893,179.66,179.63,0.04085782]
[1747908120822,0.03870893,179.66,179.64,5.5655]
[1747908121433,0.03870893,179.66,179.63,0.04085782]
[1747908122226,5.60380893,179.66,179.63,5.60665782]
[1747908122527,0.03870893,179.66,179.63,0.04085782]
[1747908122734,0.03870893,179.66,179.64,5.5656]
[1747908123034,0.03870893,179.66,179.63,0.04085782]
[1747908123436,5.60400893,179.66,179.63,5.60665782]
[1747908124237,0.03870893,179.66,179.63,0.04085782]
[1747908124931,5.5657,179.64,179.63,0.04085782]
[1747908125832,5.5657,179.64,179.56,4.48673539]
[1747908125833,5.5679,179.57,179.56,4.48673539]
[1747908126035,125.14,179.61,179.52,4.48673539]
[1747908126234,125.14,179.6,179.52,4.48673539]
[1747908127037,0.03603469,179.58,179.54,0.03660391]
[1747908127433,5.5681,179.57,179.54,0.03660391]
[1747908127633,5.5681,179.57,179.54,5.60540391]
[1747908129635,0.03603469,179.58,179.54,0.03660391]
[1747908130647,0.03603469,179.58,179.57,5.5679]
[1747908131942,0.03603469,179.58,179.54,0.03660391]
[1747908134340,5.5685,179.55,179.54,0.03660391]
[1747908134730,0.03603469,179.58,179.54,0.03660391]
[1747908135940,0.03603469,179.58,179.55,5.5682]
[1747908136140,0.03603469,179.58,179.54,0.03660391]
[1747908137140,5.60373469,179.58,179.55,5.5684]
[1747908137539,5.60373469,179.58,179.54,0.03660391]
[1747908138040,0.03603469,179.58,179.54,0.03660391]
[1747908139141,5.5682,179.56,179.54,0.03660391]
[1747908139333,0.03603469,179.58,179.54,0.03660391]
[1747908139843,5.568,179.57,179.54,5.60530391]
[1747908140045,0.03603469,179.58,179.54,0.03660391]
[1747908140541,5.5679,179.57,179.54,0.03660391]
[1747908141039,0.03603469,179.58,179.54,0.03660391]
[1747908141342,5.5679,179.57,179.54,0.03660391]
[1747908141645,0.03603469,179.58,179.54,0.03660391]
[1747908141843,5.5679,179.57,179.54,0.03660391]
[1747908142243,5.5679,179.57,179.54,5.60530391]
[1747908143344,5.5679,179.57,179.54,0.03660391]
[1747908143936,5.5685,179.55,179.54,0.03660391]
[1747908144137,5.5685,179.55,179.54,3.91e-06]
[1747908144338,5.5693,179.53,179.49,4.48673539]
[1747908144540,124.98,179.55,179.49,4.48673539]
[1747908144940,5.57,179.5,179.49,4.48673539]
[1747908145342,5.57,179.5,179.49,3.539e-05]
[1747908145543,5.5709,179.47,179.46,5.98244538]
[1747908146250,5.5716,179.45,179.44,8.97386534]
[1747908146942,5.5731,179.4,179.37,124.98]
[1747908147143,0.03755287,179.4,179.37,124.98]
[1747908147839,0.03755287,179.4,179.39,5.5734]
[1747908148749,0.03755287,179.4,179.38,4.16536737]
[1747908149554,5.61075287,179.4,179.37,124.98]
[1747908150245,5.5742,179.37,179.32,125.02]
[1747908150448,0.04137354,179.36,179.3,125.02]
[1747908150648,0.04137354,179.36,179.31,125.02]
[1747908150849,0.04137354,179.36,179.33,5.5751]
[1747908151450,0.04137354,179.36,179.31,130.5958]
[1747908151949,5.5747,179.35,179.31,130.5958]
[1747908152247,0.04137354,179.36,179.29,5.5765]
[1747908152846,0.04137354,179.36,179.3,5.5762]
[1747908153045,5.61287276,179.35,179.3,5.5762]
[1747908153250,0.03797276,179.35,179.25,125.02]
[1747908153650,5.5754,179.33,179.28,5.5767]
[1747908153954,0.03797276,179.35,179.25,125.02]
[1747908154152,0.03651662,179.32,179.31,5.5759]
[1747908154555,0.03651662,179.32,179.25,125.02]
[1747908154754,0.03651662,179.32,179.3,5.5762]
[1747908155055,0.03651662,179.32,179.25,125.02]
[1747908155248,0.03651662,179.32,179.3,5.5762]
[1747908155450,0.03651662,179.32,179.25,125.02]
[1747908157454,0.03651662,179.32,179.27,5.5771]
[1747908157651,0.03651662,179.32,179.25,125.02]
[1747908158054,0.03651662,179.32,179.3,5.5762]
[1747908158358,0.03651662,179.32,179.25,125.02]
[1747908159152,5.61231662,179.32,179.28,5.5767]
[1747908159862,5.61231662,179.32,179.27,5.5771]
[1747908159863,5.5763,179.3,179.27,5.5771]
[1747908160159,0.03651662,179.32,179.25,125.02]
[1747908160457,5.5763,179.3,179.25,125.02]
[1747908160652,0.03651662,179.32,179.25,125.02]
[1747908161157,5.5763,179.3,179.26,5.5774]
[1747908161956,5.576,179.31,179.27,5.577]
[1747908162147,0.03651662,179.32,179.27,5.577]
[1747908162549,5.61221662,179.32,179.25,125.02]
[1747908162746,0.03651662,179.32,179.25,125.02]
[1747908163160,0.03651662,179.32,179.29,5.5763]
[1747908163458,0.03651662,179.32,179.25,125.02]
[1747908163658,0.03651662,179.32,179.31,5.5759]
[1747908166161,0.03651662,179.32,179.3,5.5762]
[1747908166459,0.03651662,179.32,179.25,125.02]
[1747908166664,5.5763,179.3,179.25,125.02]
[1747908167560,0.03651662,179.32,179.25,125.02]
[1747908168060,5.5759,179.31,179.27,5.5771]
[1747908168264,5.5759,179.31,179.25,125.02]
[1747908168959,5.5759,179.31,179.28,5.5766]
[1747908169160,5.61211662,179.32,179.25,125.02]
[1747908169362,0.03651662,179.32,179.25,125.02]
[1747908169557,0.03651662,179.32,179.31,5.5759]
[1747908171452,124.98,179.42,179.3,124.98]
[1747908171858,124.98,179.42,179.31,105.96]
[1747908172153,492.52052112,179.49,179.31,105.96]
[1747908172458,0.04180436,179.42,179.38,0.03651662]
[1747908172671,0.03607574,179.42,179.39,124.98]
[1747908172966,0.03607574,179.42,179.41,5.5728]
[1747908174467,0.03607574,179.42,179.38,0.03651662]
[1747908174972,0.03607574,179.42,179.38,5.61021662]
[1747908175171,0.03607574,179.42,179.38,0.03651662]
[1747908175671,5.60867574,179.42,179.38,5.61021662]
[1747908176170,5.5728,179.41,179.38,5.61021662]
[1747908176770,5.60867574,179.42,179.39,5.5734]
[1747908177069,0.03607574,179.42,179.38,0.03651662]
[1747908177771,0.03607574,179.42,179.39,5.5734]
[1747908177972,0.03607574,179.42,179.38,0.03651662]
[1747908178371,0.03607574,179.42,179.39,5.5734]
[1747908178572,5.60867574,179.42,179.39,5.5734]
[1747908178776,0.03607574,179.42,179.39,5.5734]
[1747908179073,5.60857574,179.42,179.39,5.5734]
[1747908179371,0.03607574,179.42,179.39,5.5734]
[1747908179869,0.03607574,179.42,179.38,5.61011662]
[1747908180069,0.03607574,179.42,179.38,0.03651662]
[1747908181875,0.03607574,179.42,179.39,5.5734]
[1747908182479,5.60877574,179.42,179.39,5.5734]
[1747908182979,0.03607574,179.42,179.4,5.5731]
[1747908183578,0.03607574,179.42,179.38,0.03651662]
[1747908185678,0.03607574,179.42,179.41,5.5728]
[1747908188481,0.03607574,179.42,179.4,5.573]
[1747908189285,0.03607574,179.42,179.41,5.5728]
[1747908190085,0.03607574,179.42,179.4,5.5731]
[1747908190381,0.03607574,179.42,179.38,124.95651662]
[1747908190681,0.03607574,179.42,179.4,5.573]
[1747908190885,0.03607574,179.42,179.38,124.95651662]
[1747908191184,0.03607574,179.42,179.41,5.5728]
[1747908191588,0.03607574,179.42,179.38,124.95651662]
[1747908191797,0.03607574,179.42,179.39,5.5732]
[1747908192088,0.03607574,179.42,179.38,124.95651662]
[1747908192390,0.03607574,179.42,179.4,5.5729]
[1747908194599,0.03607574,179.42,179.41,5.5728]
[1747908194794,0.03607574,179.42,179.38,124.95651662]
[1747908195586,0.03607574,179.42,179.38,0.03651662]
[1747908196492,5.60877574,179.42,179.38,5.61001662]
[1747908196700,0.03607574,179.42,179.38,0.03651662]
[1747908197198,5.60887574,179.42,179.39,5.5734]
[1747908197494,0.03607574,179.42,179.38,0.03651662]
[1747908197698,126.76,179.53,179.39,126.76]
[1747908197997,126.76,179.53,179.4,7.04939595]
[1747908198398,126.76,179.53,179.47,5.5707]
[1747908198593,0.03542805,179.52,179.45,126.76]
[1747908198902,5.60907506,179.5,179.48,5.60743682]
[1747908199401,5.60907506,179.5,179.48,0.03683682]
[1747908200099,0.03897506,179.5,179.48,0.03683682]
[1747908200799,0.03897506,179.5,179.48,5.60723682]
[1747908200997,5.60897506,179.5,179.48,0.03683682]
[1747908202402,0.03897506,179.5,179.48,0.03683682]
[1747908203503,5.5703,179.49,179.48,0.03683682]
[1747908212106,5.5734,179.39,179.38,486.2592433]
[1747908212412,5.5734,179.39,179.38,4.6792433]
[1747908213710,0.03955104,179.4,179.38,4.6792433]
[1747908214012,0.03955104,179.4,179.39,5.5734]
[1747908216812,5.104e-05,179.4,179.39,5.5734]
[1747908217014,5.571,179.47,179.44,5.5717]
[1747908217203,131.88,179.49,179.44,5.5717]
[1747908217403,5.5715,179.46,179.38,131.88]
[1747908218014,0.03656551,179.44,179.4,0.03732233]
[1747908218414,0.03656551,179.44,179.43,5.5719]
[1747908218619,0.03656551,179.44,179.4,0.03732233]
[1747908218913,0.03656551,179.44,179.41,5.5726]
[1747908219305,0.03656551,179.44,179.4,0.03732233]
[1747908220111,0.03656551,179.44,179.43,5.5722]
[1747908221013,0.03656551,179.44,179.42,5.5724]
[1747908221211,0.03656551,179.44,179.4,0.03732233]
[1747908221515,0.03656551,179.44,179.42,5.5723]
[1747908222216,0.03656551,179.44,179.41,5.5727]
[1747908222817,5.60866551,179.44,179.41,5.5727]
[1747908224014,0.03656551,179.44,179.4,0.03732233]
[1747908225320,5.5728,179.41,179.4,0.03732233]
[1747908226623,5.5747,179.35,179.34,4.6792433]
[1747908228629,5.575,179.34,179.33,0.03798424]
[1747908242631,5.5747,179.35,179.33,0.03798424]
[1747908243035,5.575,179.34,179.33,0.03798424]
[1747908243927,5.575,179.34,179.33,8.424e-05]
[1747908244135,5.5771,179.28,179.22,129.22]
[1747908245134,0.04117035,179.27,179.25,5.5776]
[1747908245931,0.04117035,179.27,179.26,5.5775]
[1747908247034,0.04117035,179.27,179.25,5.5777]
[1747908248336,0.04117035,179.27,179.26,5.5774]
[1747908248931,0.04117035,179.27,179.24,5.5779]
[1747908249143,0.04117035,179.27,179.22,129.22]
[1747908249438,0.04117035,179.27,179.25,5.5775]
[1747908249635,0.04117035,179.27,179.22,129.22]
[1747908249947,129.24,179.41,179.25,7.04939595]
[1747908250439,5.574,179.37,179.34,5.5749]
[1747908250639,129.24,179.41,179.31,129.24]
[1747908250831,5.5737,179.38,179.31,129.24]
[1747908251032,5.61532941,179.38,179.34,0.04117036]
[1747908251338,0.04162941,179.38,179.34,0.04117036]
[1747908251637,5.5743,179.37,179.34,0.04117036]
[1747908252434,5.61542941,179.38,179.34,5.61587036]
[1747908252634,0.04162941,179.38,179.34,0.04117036]
[1747908253235,0.04162941,179.38,179.35,5.5746]
[1747908253738,5.61552941,179.38,179.34,5.61607036]
[1747908254834,5.61552941,179.38,179.34,0.04117036]
[1747908255043,0.04162941,179.38,179.35,5.5746]
[1747908255430,0.04162941,179.38,179.34,5.61607036]
[1747908255630,0.04162941,179.38,179.34,0.04117036]
[1747908256331,0.04162941,179.38,179.37,5.574]
[1747908257645,0.04162941,179.38,179.34,0.04117036]
[1747908258247,5.61552941,179.38,179.35,5.5745]
[1747908258738,0.04162941,179.38,179.36,5.5743]
[1747908258940,0.04162941,179.38,179.34,0.04117036]
[1747908259446,0.04162941,179.38,179.37,5.574]
[1747908263149,0.04162941,179.38,179.34,0.04117036]
[1747908263345,129.2,179.37,179.28,6.18641449]
[1747908263647,5.5771,179.27,179.26,0.45128781]
[1747908263851,129.18,179.29,179.2,11.96567985]
[1747908264051,129.18,179.28,179.2,11.96567985]
[1747908264249,5.579,179.21,179.2,11.96567985]
[1747908264442,5.579,179.21,179.17,5.5802]
[1747908264746,5.61990386,179.22,179.17,5.5802]
[1747908264947,5.61990386,179.22,179.18,5.5798]
[1747908265154,0.04120386,179.22,179.13,105.94]
[1747908265863,0.04120386,179.22,179.21,5.579]
[1747908269960,3.86e-06,179.22,179.21,5.579]
[1747908271477,481.7,179.35,179.29,5.5763]
[1747908271654,128.48,179.36,179.25,128.48]
[1747908271858,128.48,179.4,179.25,234.46]
[1747908272070,5.5749,179.35,179.25,234.46]
[1747908272365,128.48,179.4,179.25,234.46]
[1747908272658,0.03800031,179.34,179.31,0.04120386]
[1747908273255,0.03800031,179.34,179.31,5.61680386]
[1747908274761,5.61310031,179.34,179.31,5.61680386]
[1747908274963,0.03800031,179.34,179.31,5.61680386]
[1747908275264,0.03800031,179.34,179.31,0.04120386]
[1747908275462,5.5753,179.33,179.31,0.04120386]
[1747908275862,0.03800031,179.34,179.31,0.04120386]
[1747908277271,5.5756,179.32,179.31,0.04120386]
[1747908277973,0.03800031,179.34,179.15,481.9]
[1747908277974,128.51800031,179.34,179.15,481.9]
[1747908278158,234.44,179.34,179.16,128.48]
[1747908278358,11.13150578,179.33,179.19,5.5796]
[1747908278570,5.5786,179.23,179.19,5.5796]
[1747908278766,128.48,179.28,179.16,128.48]
[1747908278967,0.03700897,179.24,179.2,5.5791]
[1747908279468,5.5784,179.23,179.2,5.5791]
[1747908280067,5.5788,179.22,179.19,5.5795]
[1747908280268,0.03700897,179.24,179.16,128.48]
[1747908280468,128.48,179.23,179.06,481.88]
[1747908280673,0.03715464,179.16,179.07,128.48]
[1747908281574,0.03715464,179.16,179.1,5.5823]
[1747908282276,0.03715464,179.16,179.07,128.48]
[1747908283175,5.5819,179.12,179.08,5.583]
[1747908283375,0.03989704,179.12,179.09,128.52]
[1747908283880,5.62189704,179.12,179.09,128.52]
[1747908284680,0.03989704,179.12,179.09,134.1027]
[1747908284878,0.03989704,179.12,179.09,128.52]
[1747908285279,5.62179704,179.12,179.09,128.52]
[1747908286380,5.5821,179.11,179.09,128.52]
[1747908286580,0.03989704,179.12,179.09,128.52]
[1747908286780,0.03989704,179.12,179.11,5.5821]
[1747908296680,5.5799,179.19,179.15,5.5806]
[1747908296983,128.56,179.22,179.09,128.52]
[1747908297174,127.6,179.23,179.09,128.52]
[1747908297374,5.5805,179.17,179.09,128.52]
[1747908297770,0.04236622,179.15,179.11,0.03906835]
[1747908298070,0.04236622,179.15,179.14,5.5809]
[1747908298785,0.04236622,179.15,179.11,0.03906835]
[1747908300480,0.04236622,179.15,179.13,5.5812]
[1747908300683,0.04236622,179.15,179.11,0.03906835]
[1747908301072,127.62,179.25,179.11,0.03906835]
[1747908301273,127.62,179.25,179.09,128.52]
[1747908301482,5.579,179.21,179.18,5.5799]
[1747908301682,127.62,179.25,179.15,127.62]
[1747908302284,0.04256747,179.22,179.18,0.04279648]
[1747908302985,5.5796,179.19,179.18,0.04279648]
[1747908303785,5.5794,179.2,179.18,0.04279648]
[1747908304482,0.04256747,179.22,179.18,0.04279648]
[1747908305080,5.5796,179.19,179.18,0.04279648]
[1747908309891,0.04256747,179.22,179.18,0.04279648]
[1747908310189,0.04256747,179.22,179.19,5.5796]
[1747908310385,0.04256747,179.22,179.18,0.04279648]
[1747908310587,5.62256747,179.22,179.07,127.6]
[1747908310780,11.1593,179.19,179.03,133.81357637]
[1747908310986,5.5826,179.1,179.03,133.81357637]
[1747908311292,127.6,179.18,179.03,133.81357637]
[1747908311693,0.03634575,179.12,179.09,0.03946678]
[1747908312287,5.5821,179.11,179.09,0.03946678]
[1747908312995,5.61824575,179.12,179.09,0.03946678]
[1747908313186,0.03634575,179.12,179.09,0.03946678]
[1747908313581,5.5823,179.11,179.09,0.03946678]
[1747908314293,5.5824,179.1,179.09,0.03946678]
[1747908316791,0.03634575,179.12,179.09,0.03946678]
[1747908318797,0.03634575,179.12,179.11,5.5821]
[1747908319197,0.03634575,179.12,179.1,5.5823]
[1747908319394,0.03634575,179.12,179.09,0.03946678]
[1747908319899,0.03634575,179.12,179.1,5.5822]
[1747908320999,0.03634575,179.12,179.11,5.5821]
[1747908324606,0.03634575,179.12,179.11,133.2221]
[1747908324809,4.575e-05,179.12,179.11,133.2221]
[1747908326514,5.5795,179.2,179.16,5.5803]
[1747908327010,5.5798,179.19,179.16,5.5803]
[1747908327213,127.64,179.22,179.11,132.36037994]
[1747908327611,0.04288405,179.18,179.15,0.03722794]
[1747908327815,0.04288405,179.18,179.15,5.61782794]
[1747908328112,5.62278405,179.18,179.15,5.61782794]
[1747908328909,0.04288405,179.18,179.15,0.03722794]
[1747908329211,0.04288405,179.18,179.16,5.5803]
[1747908329612,0.04288405,179.18,179.15,0.03722794]
[1747908330214,0.04288405,179.18,179.16,5.5804]
[1747908331616,0.04288405,179.18,179.17,5.5802]
[1747908340327,5.5806,179.16,179.15,0.03722794]
[1747908340626,131.3006,179.16,179.15,2.794e-05]
[1747908340929,131.3,179.16,179.12,4.72037994]
[1747908341131,125.72,179.16,179.04,4.72037994]
[1747908341629,5.5829,179.09,179.05,5.5837]
[1747908341829,5.62035313,179.09,179.05,5.62023045]
[1747908342036,5.62035313,179.09,179.05,0.03653045]
[1747908342230,5.62035313,179.09,179.06,5.5837]
[1747908342529,5.62035313,179.09,179.05,0.03653045]
[1747908342825,5.5831,179.08,179.05,0.03653045]
[1747908343229,0.03745313,179.09,179.05,5.62033045]
[1747908344831,5.5831,179.08,179.05,5.62033045]
[1747908346629,0.03745313,179.09,179.05,0.03653045]
[1747908347140,0.03745313,179.09,179.08,5.583]
[1747908347335,0.03745313,179.09,179.08,131.343]
[1747908351133,0.03745313,179.09,179.08,125.76]
[1747908351839,0.03745313,179.09,179.08,131.343]
[1747908353836,482.22,179.21,179.12,5.5816]
[1747908354040,125.76,179.2,179.12,5.5816]
[1747908354241,5.5808,179.16,179.12,5.5816]
[1747908354433,125.76,179.2,179.11,5.582]
[1747908354738,5.5811,179.15,179.11,5.582]
[1747908355040,0.03706636,179.15,179.12,5.5816]
[1747908355234,5.61796636,179.15,179.12,5.5816]
[1747908355433,0.03706636,179.15,179.11,5.62109899]
[1747908355938,0.03706636,179.15,179.11,0.03909899]
[1747908357039,5.5817,179.13,179.11,0.03909899]
[1747908357439,0.03706636,179.15,179.11,0.03909899]
[1747908357635,5.5812,179.14,179.11,0.03909899]
[1747908358841,5.5816,179.13,179.11,0.03909899]
[1747908359741,5.5818,179.12,179.11,0.03909899]
[1747908359946,0.03706636,179.15,179.11,0.03909899]
[1747908361147,5.5818,179.12,179.11,0.03909899]
[1747908362546,0.03706636,179.15,179.11,0.03909899]
[1747908363250,5.5814,179.14,179.11,0.03909899]
[1747908363951,5.5814,179.14,179.11,5.62119899]
[1747908364250,5.5815,179.13,179.11,0.03909899]
[1747908364649,5.5818,179.12,179.11,0.03909899]
[1747908365650,5.5814,179.14,179.11,0.03909899]
[1747908366850,5.5814,179.14,179.11,5.62109899]
[1747908367249,0.03706636,179.15,179.11,0.03909899]
[1747908367849,5.5818,179.12,179.11,0.03909899]
[1747908377361,132.77047944,179.13,179.01,4.72037994]
[1747908377657,125.7,179.13,179.01,4.72037994]
[1747908377858,5.5823,179.11,179.01,4.72037994]
[1747908378062,125.72,179.14,178.99,7.07047944]
[1747908378255,125.72,179.14,179.05,0.03693873]
[1747908378460,0.03528976,179.08,179.05,0.03693873]
[1747908379563,5.61838976,179.08,179.06,5.5836]
[1747908379864,0.03528976,179.08,179.06,5.5836]
[1747908380754,0.03528976,179.08,179.05,5.62083873]
[1747908381162,5.61838976,179.08,179.05,5.62083873]
[1747908381365,5.61838976,179.08,179.06,5.5836]
[1747908381560,5.61838976,179.08,179.05,0.03693873]
[1747908381762,5.61838976,179.08,179.05,5.62083873]
[1747908382467,0.03528976,179.08,179.06,5.5836]
[1747908382768,0.03528976,179.08,179.05,0.03693873]
[1747908384168,5.5836,179.07,179.05,0.03693873]
[1747908384365,0.03528976,179.08,179.05,0.03693873]
[1747908385178,0.03528976,179.08,179.07,5.5834]
[1747908387377,0.03528976,179.08,179.06,5.5836]
[1747908388775,0.03528976,179.08,179.07,5.5834]
[1747908389380,0.03528976,179.08,179.06,5.5836]
[1747908389580,0.03528976,179.08,179.05,0.03693873]
[1747908389978,5.61858976,179.08,179.05,5.62083873]
[1747908391082,5.5834,179.07,179.05,0.03693873]
[1747908392571,5.5837,179.06,179.05,0.03693873]
[1747908393578,5.5834,179.07,179.05,0.03693873]
[1747908393781,0.03528976,179.08,179.05,0.03693873]
[1747908393980,125.59528976,179.08,179.05,0.03693873]
[1747908394180,5.5846,179.03,179.02,4.72037994]
[1747908394484,125.56,179.03,178.97,9.36120183]
[1747908394674,125.56,179.03,178.96,5.5867]
[1747908394980,125.56,179.03,178.95,4.7498737]
[1747908395176,5.5856,179.0,178.97,5.5862]
[1747908395371,0.04054635,179.01,178.95,4.7498737]
[1747908395781,0.04054635,179.01,178.98,5.586]
[1747908395982,0.04054635,179.01,178.95,4.7498737]
[1747908396283,0.04054635,179.01,178.98,5.586]
[1747908397176,5.62594635,179.01,178.98,5.586]
[1747908397573,0.04054635,179.01,178.99,5.5859]
[1747908397981,0.04054635,179.01,178.93,125.56]
[1747908398278,5.62584635,179.01,178.98,5.5859]
[1747908398582,0.04054635,179.01,178.75,544.0]
[1747908398780,0.04074552,178.97,178.89,608.06]
[1747908398989,0.04074552,178.97,178.94,5.5872]
[1747908399179,0.04074552,178.97,178.89,608.06]
[1747908399585,0.04074552,178.97,178.94,5.5872]
[1747908399887,0.04074552,178.97,178.89,608.06]
[1747908400082,0.04074552,178.97,178.94,5.5873]
[1747908400284,5.62734552,178.97,178.89,714.2]
[1747908400786,0.04074552,178.97,178.94,5.5873]
[1747908400986,0.04074552,178.97,178.89,608.06]
[1747908401287,5.587,178.96,178.92,5.5879]
[1747908401881,5.5871,178.95,178.91,5.5882]
[1747908402294,0.04074552,178.97,178.89,608.06]
[1747908402882,5.5871,178.95,178.91,5.5882]
[1747908403087,0.04074552,178.97,178.89,608.06]
[1747908403485,0.04074552,178.97,178.95,5.587]
[1747908403684,0.04074552,178.97,178.89,608.06]
[1747908403881,5.62074552,178.97,178.83,6.21357637]
[1747908404086,0.04063751,178.92,178.83,6.21357637]
[1747908404486,5.5886,178.9,178.85,5.5901]
[1747908404682,5.5886,178.9,178.83,6.21357637]
[1747908404891,0.04003977,178.88,178.83,6.21357637]
[1747908405086,5.5901,178.86,178.83,6.21357637]
[1747908405291,0.04003977,178.88,178.83,6.21357637]
[1747908405493,0.04003977,178.88,178.83,11.80427637]
[1747908405793,0.04003977,178.88,178.83,6.21357637]
[1747908406592,5.5904,178.85,178.81,5.5912]
[1747908406789,0.04003977,178.88,178.78,125.6]
[1747908407099,0.03842909,178.85,178.74,7.45168056]
[1747908407283,0.04070449,178.81,178.74,7.45168056]
[1747908407787,5.5933,178.75,178.74,7.45168056]
[1747908407984,0.04070449,178.81,178.63,11.96567985]
[1747908407985,125.70124216,178.76,178.63,11.96567985]
[1747908408188,5.5949,178.7,178.63,11.96567985]
[1747908409789,0.03853057,178.71,178.63,11.96567985]
[1747908409985,0.03853057,178.71,178.61,125.66]
[1747908410390,5.595,178.7,178.61,125.66]
[1747908410587,0.03797105,178.67,178.61,125.66]
[1747908410983,0.03797105,178.67,178.53,62.0]
[1747908411189,0.03548865,178.62,178.54,125.72]
[1747908411390,0.03548865,178.62,178.54,132.82068029]
[1747908411589,0.03548865,178.62,178.55,7.10068029]
[1747908412698,0.03548865,178.62,178.61,5.5977]
[1747908412990,0.03548865,178.62,178.54,132.82068029]
[1747908415688,0.03548865,178.62,178.54,125.72]
[1747908416095,0.03548865,178.62,178.61,5.5977]
[1747908417201,0.03548865,178.62,178.45,133.42]
[1747908417497,133.42,178.63,178.47,7.11755385]
[1747908417498,0.04228566,178.55,178.47,7.11755385]
[1747908417795,5.64188566,178.55,178.46,0.97473531]
[1747908417995,0.04228566,178.55,178.45,133.42]
[1747908418591,0.04228566,178.55,178.45,140.53755385]
[1747908418794,0.04228566,178.55,178.45,141.51239838]
[1747908419590,0.04228566,178.55,178.45,134.39484453]
[1747908420187,0.04228566,178.55,178.46,62.0]
[1747908420487,0.04228566,178.55,178.45,133.42]
[1747908421094,0.04228566,178.55,178.45,134.39480357]
[1747908421294,0.04228566,178.55,178.54,5.5999]
[1747908422699,8.566e-05,178.55,178.54,5.5999]
[1747908426405,494.83677874,178.72,178.53,0.03862343]
[1747908426593,483.62,178.72,178.52,11.21677874]
[1747908426791,483.62,178.72,178.56,11.21677874]
[1747908426997,5.5942,178.72,178.57,133.5]
[1747908427198,133.5,178.74,178.58,106.36]
[1747908427398,0.04241019,178.68,178.64,0.03563053]
[1747908427600,0.03926302,178.68,178.64,0.03557446]
[1747908428103,0.03926302,178.68,178.67,5.5958]
[1747908430206,0.03926302,178.68,178.64,0.03557446]
[1747908431804,0.03926302,178.68,178.67,5.5958]
[1747908433010,249.61263288,178.79,178.73,5.5938]
[1747908433316,249.61263288,178.79,178.68,133.48]
[1747908433506,249.61263288,178.79,178.73,5.5936]
[1747908434014,0.03672687,178.78,178.74,5.63185369]
[1747908434213,0.03672687,178.78,178.74,0.03825369]
[1747908434606,0.03672687,178.78,178.75,5.5932]
[1747908434803,0.03672687,178.78,178.74,0.03825369]
[1747908435515,0.03672687,178.78,178.77,5.5926]
[1747908437409,0.03672687,178.78,178.74,0.03825369]
[1747908437719,5.5933,178.75,178.74,0.03825369]
[1747908437921,133.44,178.76,178.67,133.48]
[1747908438215,5.595,178.7,178.67,133.48]
[1747908438416,5.595,178.7,178.65,5.5963]
[1747908438613,133.44,178.76,178.63,133.44]
[1747908438813,0.03971978,178.71,178.68,0.0398688]
[1747908439007,0.04160949,178.71,178.68,0.03716991]
[1747908439213,0.04160949,178.71,178.68,133.47716991]
[1747908440610,0.04160949,178.71,178.7,5.5948]
[1747908442618,9.49e-06,178.71,178.7,5.5948]
[1747908442817,11.21677874,178.89,178.76,5.5928]
[1747908443119,5.5919,178.8,178.68,133.44]
[1747908443414,122.99303978,178.91,178.68,133.44]
[1747908443718,5.5911,178.83,178.68,133.44]
[1747908443916,133.44,178.89,178.77,0.0355539]
[1747908444112,122.99303978,178.91,178.81,0.04234442]
[1747908444310,16.2835557,178.99,178.82,133.42]
[1747908444513,133.42,178.98,178.82,133.42]
[1747908444814,133.42,178.98,178.87,5.5894]
[1747908445217,133.42,178.98,178.82,133.42]